Cogmind - Beta 13 @@@ ROGUE MODE // 2024.06.04 @ 13:56:17 Player: Teratos Result: Destroyed by S-10 Pest with Light Assault Rifle Performance ------------- Evolutions (0) 0 Regions Visited (1) 200 Robots Destroyed (12) 60 Value Destroyed (100) 100 Prototype IDs (0) 0 Alien Tech Used (0) 0 Bonus (0) 0 TOTAL SCORE: 360 Bonus ------- None Cogmind --------- Core Integrity 0/250 Matter 323/350 Energy 100/100 System Corruption 13% Temperature Cool (0) Movement Flying (120) Ox1 Location -10/Materials Parts ------- > --- POWER (1) -------- (None) > --- PROPULSION (2) --- Flight Unit > --- UTILITY (2) ------ Small Matter Pod Structural Scanner > --- WEAPON (2) ------- Light Cannon > --- INVENTORY (5) ---- (None) Peak State ------------ > --- POWER ------------ Ion Engine > --- PROPULSION ------- Light Treads Light Treads > --- UTILITY ---------- Small Storage Unit Improved Terrain Scanner > --- WEAPON ----------- Small Laser Light Assault Rifle > --- INVENTORY -------- (None) [Rating: 9] Favorites ----------- Power Ion Engine Engine Ion Engine Propulsion Light Treads Treads Light Treads Flight Unit Flight Unit Utility Improved Terrain Scanner Device Improved Terrain Scanner Storage Small Matter Pod Weapon Mining Laser Energy Gun Small Laser Ballistic Gun Light Assault Rifle Ballistic Cannon Light Cannon Special Weapon Mining Laser Special Melee Weapon Datajack Build | -11 -10 ------- Run | Yrd Mat Slots Evolved . | . . Power . | . . Propulsion . | . . Utility . | . . Weapon . | . . Parts Attached 22 | 10 12 Power 1 | 1 . Engine 1 | 1 . Core . | . . Reactor . | . . Propulsion 6 | 2 4 Treads 2 | 2 . Leg . | . . Wheel . | . . Hover . | . . Flight 4 | . 4 Utility 6 | 3 3 Device 4 | 2 2 Storage 2 | 1 1 Processor . | . . Hackware . | . . Protection . | . . Artifact . | . . Weapon 9 | 4 5 Energy Gun 1 | 1 . Energy Cannon . | . . Ballistic Gun 1 | 1 . Ballistic Cannon 1 | . 1 Launcher . | . . Special Weapon 5 | 2 3 Impact Weapon . | . . Slashing Weapon . | . . Piercing Weapon . | . . Special Melee Weapon 1 | . 1 Unidentified Prototypes . | . . Parts Lost 9 | . 9 Power 1 | . 1 Propulsion 3 | . 3 Utility 2 | . 2 Weapon 3 | . 3 Highest Loss Streak 6 | . 6 To Critical Strikes . | . . Average Slot Usage (%) 70 | . 70 Engine 12 | . 12 Treads 16 | . 16 Flight 7 | . 7 Device 7 | . 7 Storage 6 | . 6 Special Weapon 14 | . 14 Special Melee Weapon 3 | . 3 Naked Turns . | . . Heaviest Build 13 | 13 9 Greatest Support 40 | 40 40 Greatest Overweight (x) 2 | 1 2 Average Overweight (x) . | . . Largest Inventory Capacity 8 | 8 5 Average Capacity 5 | 5 5 Most Carried . | . . Average Carried . | . . Final Capacity 5 | 5 5 Final Carried . | . . Class Distribution -------------------- 51% | Scavenger-Mutant 48% | Mutant Dominant Class ---------------- Mutant | -10/Materials Resources | -11 -10 ----------- Run | Yrd Mat Matter Collected 414 | 314 100 Remotely . | . . Salvage Created 254 | 166 88 Parts 22 | 16 6 Haulers Intercepted . | . . Recyclers Shooed 1 | 1 . Parts Field Recycled . | . . Retrieved Matter . | . . Parts Self-Destructed . | . . Prevented . | . . Kills | -11 -10 ------- Run | Yrd Mat Combat Hostiles Destroyed 2 | . 2 Cannons 2 | . 2 Classes Destroyed 5 | 3 2 Worker 2 | 2 . Tunneler 6 | 5 1 Recycler 2 | 1 1 Swarmer 1 | . 1 Grunt 1 | . 1 Best Kill Streak 4 | 4 2 Combat Bots Only 1 | . 1 Max Kills in Single Turn 1 | 1 1 Gunslinging . | . . Exploded . | . . Melee . | . . Uniques/NPCs Destroyed . | . . Combat | -11 -10 -------- Run | Yrd Mat Hostile Shots Fired 44 | . 44 Missed 11 | . 11 Damage Taken 681 | . 681 Core 253 | . 253 Absorbed by Shields . | . . Regen/Repaired (Parts) 10 | . 10 Core Remaining (%) 100 | 100 . Volleys Fired 35 | 16 19 Largest 2 | 2 2 Hottest 200 | 200 200 Shots Fired 50 | 29 21 Gun 22 | 22 . Cannon 3 | . 3 Launcher . | . . Special 25 | 7 18 Kinetic 17 | 14 3 Thermal 33 | 15 18 Explosive . | . . Electromagnetic . | . . Robot Hit Streak 10 | 10 2 Robot Miss Streak 3 | 2 3 Penetration Max . | . . Secondary Targets . | . . Shots Hit Robots 29 | 21 8 Core Hits 17 | 12 5 Critical Kills . | . . Critical Parts Destroyed 1 | 1 . Critical Strikes 1 | 1 . Destroy 1 | 1 . Melee Attacks 2 | . 2 Impact . | . . Slashing . | . . Piercing . | . . Sneak Attacks 2 | . 2 Combat Hostiles . | . . Follow-up Attacks . | . . Damage Inflicted 430 | 221 209 Guns 197 | 197 . Cannons 19 | . 19 Explosions . | . . Melee . | . . Ramming 46 | . 46 Kinetic 138 | 119 19 Thermal 246 | 102 144 Explosive . | . . Electromagnetic . | . . Impact . | . . Slashing . | . . Piercing . | . . Highest Corruption 13 | . 13 Average Corruption 13 | . 13 Corruption Purged . | . . Corruption Blocked . | . . Effects 16 | . 16 Message Errors 4 | . 4 Matter Fused 4 | . 4 Heat Flow Errors 2 | . 2 Energy Discharges 2 | . 2 Parts Rejected 1 | . 1 Data Loss (minor) 1 | . 1 Alerts 1 | . 1 Misdirections 1 | . 1 Overload Shots . | . . Overflow Damage . | . . Projectiles . | . . Explosions . | . . Melee . | . . Knockbacks . | . . Impact . | . . Kinetic . | . . Secondary . | . . Self-Inflicted Damage 19 | . 19 Shots . | . . Rammed 21 | . 21 Targets Rammed 21 | . 21 Kicked . | . . Crushed . | . . Highest Temperature 274 | 60 274 Average Temperature 79 | 25 104 Received Heat Transfer 162 | . 162 Siege Activations . | . . Robots Corrupted . | . . Combat Hostiles . | . . Parts Fried . | . . Impact Corruptions . | . . Robots Melted . | . . Combat Hostiles . | . . Parts Melted . | . . Heat Transferred 525 | 225 300 Parts Sabotaged . | . . Parts Stolen . | . . Parts Stripped . | . . Power Chain Reactions . | . . Alert | -11 -10 ------- Run | Yrd Mat Peak Influence 45 | 40 45 Initial 26 | . 26 Average 16 | 19 13 Maximum Alert Level . | . . Low Security (%) 100 | 100 100 Level 1 . | . . Level 2 . | . . Level 3 . | . . Level 4 . | . . Level 5 . | . . High Security . | . . Max Security . | . . Squads Dispatched 1 | . 1 Investigation . | . . Extermination . | . . Reinforcement 1 | . 1 Assault . | . . Garrison . | . . Intercept . | . . Searches Triggered . | . . Construction Impeded . | . . Haulers Reinforced . | . . Active Scanning Responses . | . . Cargo Convoy Interrupts . | . . Stealth | -11 -10 --------- Run | Yrd Mat Distress Signals . | . . Communications Jammed . | . . Distress Signals . | . . Times Spotted 6 | . 6 Peak Tracking Total 4 | . 4 Tactical Retreats . | . . Traps | -11 -10 ------- Run | Yrd Mat Traps Triggered 1 | . 1 Indirectly . | . . Trap Hack Attempts 2 | . 2 Triggered . | . . Disarmed 1 | . 1 Reprogrammed . | . . Reused . | . . Traps Extracted . | . . Installed . | . . Triggered . | . . Machines | -11 -10 ---------- Run | Yrd Mat Machines Disabled . | . . Max in Single Turn . | . . Machines Repaired . | . . Machines Dismantled . | . . Machines Sabotaged . | . . Overloaded Fab Kills . | . . Hacking | -11 -10 --------- Run | Yrd Mat Machines Accessed 2 | . 2 Terminals 1 | . 1 Fabricators . | . . Repair Stations 1 | . 1 Recycling Units . | . . Scanalyzers . | . . Garrison Access . | . . Total Hacks 8 | . 8 Successful 2 | . 2 Failed 6 | . 6 Catastrophic 3 | . 3 Database Lockouts . | . . Manual . | . . Terminals 5 | . 5 Fabricators . | . . Repair Stations 3 | . 3 Recycling Units . | . . Scanalyzers . | . . Garrison Access . | . . Terminal Hacks . | . . Fabricator Hacks . | . . Repair Station Hacks 2 | . 2 Scan Component 1 | . 1 Repair 1 | . 1 Recycling Unit Hacks . | . . Scanalyzer . | . . Garrison Access Hacks . | . . Unauthorized Hacks . | . . Terminals . | . . Fabricators . | . . Repair Stations . | . . Recycling Units . | . . Scanalyzers . | . . Garrison Access . | . . Data Cores Recovered . | . . Used . | . . Hacking Detections 2 | . 2 Full Trace Events 1 | . 1 Feedback Events . | . . Feedback Blocked . | . . Robot Schematics Acquired . | . . Robots Built . | . . Authchips . | . . Time . | . . Total Robot Build Rating . | . . Part Schematics Acquired . | . . Parts Built . | . . Authchips . | . . Time . | . . Total Part Build Rating . | . . Parts Repaired 1 | . 1 Time 26 | . 26 Parts Recycled . | . . Recycled Matter . | . . Retrieved Matter . | . . Retrieved Components . | . . Parts Scanalyzed . | . . Part Schematics Acquired . | . . Parts Damaged . | . . Bothacking | -11 -10 ------------ Run | Yrd Mat Used RIF Installer . | . . Robots Hacked 1 | . 1 Non-combat 1 | . 1 Combat . | . . Robot Hacks Applied 2 | . 2 parse_system 1 | . 1 no_distress 1 | . 1 Relay Couplers Released . | . . Fabnet Peak Effective % . | . . Robots Rewired . | . . Allies Hacked . | . . Hacks Repelled . | . . Allies | -11 -10 -------- Run | Yrd Mat Total Allies . | . . Largest Group . | . . Highest-Rated Group . | . . Highest-Rated Ally . | . . Total Orders . | . . Ally Attacks . | . . Total Damage . | . . Kills . | . . Allies Corrupted . | . . Allies Melted . | . . Intel | -11 -10 ------- Run | Yrd Mat Robot Analysis Total . | . . Derelict Logs Recovered . | . . Drone Launches . | . . Drone Recoveries . | . . Exploration | -11 -10 ------------- Run | Yrd Mat Turns Passed 870 | 347 523 Spaces Moved 559 | 177 382 Core 36 | 17 19 Treads 310 | 160 150 Legs . | . . Wheels . | . . Hover . | . . Flight 213 | . 213 Fastest Speed 37 | 50 37 Average Speed 108 | 150 88 Slowest Speed 160 | 160 160 Overloaded Moves . | . . Propulsion Burnouts . | . . Robots Hopped 4 | . 4 Cave-ins Triggered 1 | . 1 Exploration Rate (%) 18 | 7 30 Regions Visited 1 Branch Regions . Pre-discovered Areas . | . . Known Exits Taken . | . . Unknown Exits Taken 1 | 1 . Scrap Searched . | . . Spaces Dug 6 | . 6 Terrain Destroyed 10 | 2 8 Melee . | . . Projectile 10 | 2 8 AOE . | . . Terrain Rammed . | . . Walls Destroyed . | . . Machines Disabled . | . . Actions | -11 -10 --------- Run | Yrd Mat Total 712 | 214 498 Wait 72 | 9 63 Move 550 | 176 374 Hop 4 | . 4 Pick Up . | . . Fast Attach 22 | 10 12 Attach . | . . Detach . | . . Swap . | . . Drop 4 | 3 1 Fire 35 | 16 19 Melee 2 | . 2 Ram 21 | . 21 Kick . | . . Crush . | . . Escape Stasis . | . . Rewire . | . . Trap 2 | . 2 Miscellaneous . | . . Route ------- -11/Scrapyard -10/Materials (discovered 2 exits: [*Mat] / [Sub]) History --------- Turn | Location | Event 50 | -11/Scrapyard | Discovered new exit (range 16) 348 | -11/Scrapyard | Entered Materials 349 | -10/Materials | Build established: Scavenger-Mutant 476 | -10/Materials | Crushed by falling debris 476 | -10/Materials | System corruption reached 10% 507 | -10/Materials | Lost 3 parts (2u1w) 512 | -10/Materials | Discovered new exit (range 15) 599 | -10/Materials | Repaired Mining Laser 757 | -10/Materials | Build established: Mutant 822 | -10/Materials | Core integrity fell below 50% 843 | -10/Materials | Discovered new exit (range 12) 858 | -10/Materials | Core integrity fell below 20% 871 | -10/Materials | Destroyed by S-10 Pest with Light Assault Rifle Last Messages --------------- 00803_ Destabilizing: Short circuit. 00804_ Slammed into G-34 Mercenary. 00820_ Slammed into U-05 Engineer. 00820_ U-05 Engineer builds a Wall. 00821_ Slammed into G-34 Mercenary. 00822_ Destabilizing: Core damaged (-12). 00823_ Broken Flight Unit destroyed. 00823_ Slammed into G-34 Mercenary. 00827_ Broken Ion Engine destroyed. 00831_ Acquired Flight Unit. 00836_ Acquired 2 matter. 00840_ Acquired Structural Scanner. 00841_ Flight Unit destroyed. 00843_ EXIT=FOUND 00849_ Acquired 23 matter. 00850_ System corrupted: Matter fused (-5). 00850_ Acquired 5 matter. 00863_ Acquired Lgt. Cannon. 00865_ System corrupted: Matter fused (-5). 00868_ S-10 Pest destroyed. Map ----- +----------------------------------------------------+ | ????????????????????????????? | | ????????????????????????????? | | ????????????????????????????? | | ????????????????????????????? | | ????????????????????????????? | | ????????????????????????????? | | ????????????????????????????? | | ????????????????????????????? | | ????????????????????????????? | | ????????????????????????????? | | ????????????????????????????? | | ????????????????????????????? | | ????????????????????????????? | | ????????????????????????????? | | ????????????????????????????? | | ????????????????????????????? | | ????????????????????????????? | | ????????????????????????????? | | ????????????????????????????? | | ???????????????????########## | | ?????????????################ | | ????????############# % ## | | ????????####### ! #! %! ## | | ???????### # =## | | ? ???#?### + """ss## | | ?? # """@ ## | | ??????######### # """ ## | | ??????########### ########### | | ? ???############ #####<##### | | ???????## # ########??? | | ???????##% / # ##??? | | ???????## ! # # ##??? | | ???????####+##### ## ###????? | | ???????#### ^ ###????? | | ?????????##^ ^ ^ T###???? | | ########?## ^""" ####???? | | #?## "Y" ""##???? | | """"" #### ^ ""##???? | | """"" # ## !!!T"##???? | | """"" " ##= ^ ^ !!""##???? | | #### ^^ !! ""##???# | | """"" ####== ####???? | | """"" #?## ###???? | | """"" =#?## ##???#? | | #?## %% ##??#?? | | ########?## %% #####????? | | ?????????####%##########????? | | ???????#?####%########?????#? | | ?????????#?## # #??????? | | ??????????### # """ ######## | +----------------------------------------------------+ Best States ------------- Heat Dissipation 25 Energy Generation 10 Energy Capacity 250 Matter Stores 350 Matter Capacity 350 Sight Range 16 Terrain Scan Range 16 Terrain Scan Density 10 Evasion (%) 62 Recoil Reduction 2 Item Schematics ----------------- None Robot Schematics ------------------ None Fabricated ------------ Nothing Alien Tech Used ----------------- None Achievements -------------- None Challenges ------------ None Game ------ Seed GreatBiocellClaymores Manual? 0 Play Time 00:58:00 Cumulative 64.8 hours Start 2024.05.04 @ 21:10:03 End 2024.06.04 @ 13:56:17 Sessions 5 Manual Loads 0 Difficulty Rogue Special Mode None Game No. 140 Rogue 140 Adventurer 0 Explorer 0 Win Type - Total 0 Types 0/0/0/0/0/0/0/0/0 Lore% 23 Gallery% 30 Achievement% 26 Wizard Run 0 Options --------- Layout 1 ASCII 0 Keyboard 1 Movement Numpad Keybinds 0 Fullscreen 1 Font 16/SmallcapsGlow Map View 55x38 Zoom Use 0% Tactical HUD 1 Map Filters NONE Filters NONE Steam 1 RUN: 11653f0a-521c-47bd-956e-bea02203d451